bitfinex/quotes_ETHUSD_20260113
["timestamp","ask_amount","ask_price","bid_price","bid_amount"]
[1768340991310,0.002,3207.5,3207.2,2.02413099]
[1768340991637,0.16440001,3207.8,3207.2,2.02413099]
[1768340998188,2.07701193,3207.8,3207.1,0.93731279]
[1768340998399,2.07701193,3207.8,3207.2,0.56023096]
[1768341000802,2.07701193,3207.8,3207.3,0.244]
[1768341000974,1.91261192,3207.7,3206.6,2.02413099]
[1768341001175,1.91261192,3207.7,3206.7,0.244]
[1768341001887,1.91261192,3207.7,3206.8,2.02413099]
[1768341002204,1.91261192,3207.7,3206.9,0.2268131]
[1768341002385,0.002,3207.8,3207.2,2.02413099]
[1768341002575,0.002,3207.8,3207.2,2.26813099]
[1768341003586,0.002,3207.5,3207.2,2.26813099]
[1768341003899,1.91461192,3207.8,3207.2,0.244]
[1768341004093,1.91461192,3207.8,3207.3,0.49089969]
[1768341004300,0.16240001,3207.7,3207.3,0.49089969]
[1768341005213,0.16240001,3207.7,3207.3,2.30463548]
[1768341008817,0.16240001,3207.7,3207.3,0.49089969]
[1768341009384,0.15207231,3207.7,3207.0,0.245]
[1768341009606,2.04804303,3207.7,3207.0,0.245]
[1768341009800,2.04804303,3207.7,3207.0,2.05873579]
[1768341010017,0.15207231,3207.7,3207.0,2.05873579]
[1768341014003,2.04804303,3207.7,3207.0,0.001]
[1768341014321,1.89597072,3207.5,3207.0,0.001]
[1768341014526,1.89597072,3207.5,3206.9,0.244]
[1768341014937,1.89597072,3207.5,3207.3,0.001]
[1768341015454,1.89597072,3207.3,3206.4,14.5]
[1768341015605,1.89597072,3207.3,3206.5,1.694]
[1768341015801,1.89597072,3207.3,3206.5,0.244]
[1768341016632,5.01386163,3207.3,3206.5,0.244]
[1768341017443,2.08375043,3207.2,3206.5,0.244]
[1768341021267,2.08375043,3207.2,3206.2,1.90278021]
[1768341021554,1.93167813,3207.0,3206.3,0.244]
[1768341021711,1.93167813,3207.0,3206.3,0.21477802]
[1768341022054,1.93167813,3207.0,3206.3,0.244]
[1768341022614,5.04986226,3207.0,3206.3,0.244]
[1768341024520,0.1520723,3206.9,3206.3,0.244]
[1768341024965,0.1520723,3206.9,3206.2,2.14678021]
[1768341025863,0.1520723,3206.9,3206.2,1.90278021]
[1768341026062,0.1520723,3206.9,3206.2,2.14678021]
[1768341026262,0.1520723,3206.9,3206.2,2.36155823]
[1768341026552,0.1520723,3206.9,3206.6,0.001]
[1768341028833,3.27036142,3206.9,3206.6,0.001]
[1768341031230,0.1520723,3206.9,3206.6,0.001]
[1768341032233,0.1520723,3206.9,3206.7,1.90278021]
[1768341033663,0.1520723,3206.9,3206.6,0.001]
[1768341037578,0.66043325,3206.9,3206.6,0.001]
[1768341037887,5.5920645,3206.9,3206.1,2.18085131]
[1768341038039,1.81332987,3206.8,3206.1,0.245]
[1768341038566,1.81332987,3206.7,3206.1,0.245]
[1768341040565,4.93183142,3206.7,3206.1,0.245]
[1768341040765,1.81332987,3206.6,3206.1,0.001]
[1768341040957,2.45858531,3206.6,3206.1,0.001]
[1768341041267,1.81332987,3206.5,3206.1,0.001]
[1768341041964,0.64525544,3206.6,3206.1,0.001]
[1768341042163,0.1520723,3206.6,3206.1,0.001]
[1768341044567,0.1520723,3206.6,3206.2,1.93585131]
[1768341044745,3.11723161,3208.0,3206.2,1.93585131]
[1768341044746,1.81332987,3207.6,3206.2,2.29982233]
[1768341045069,1.81332987,3207.6,3206.3,0.244]
[1768341045257,1.81332987,3207.6,3206.3,2.17985131]
[1768341045446,1.81332987,3207.4,3206.4,2.15383644]
[1768341047469,4.93116403,3207.4,3206.4,2.15383644]
[1768341049470,0.002,3207.1,3206.4,2.15383644]
[1768341049669,1.81532987,3207.8,3206.6,1.93585131]
[1768341049867,0.002,3207.4,3206.6,1.93585131]
[1768341050077,0.002,3207.4,3206.8,1.93585131]
[1768341051046,1.81532987,3207.4,3206.5,1.93585131]
[1768341051669,4.93317612,3207.4,3206.5,1.93585131]
[1768341052371,4.93317612,3207.4,3206.6,0.244]
[1768341052547,1.81332987,3207.3,3206.4,2.15383644]
[1768341052750,1.81332987,3207.2,3206.4,2.39783644]
[1768341055388,1.81332987,3207.1,3206.4,1.93585131]
[1768341055675,1.81332987,3207.1,3206.2,2.17985131]
[1768341060281,1.81332987,3207.3,3206.2,2.17985131]
[1768341061064,1.81332987,3207.3,3206.5,1.93685131]
[1768341061466,0.002,3207.1,3206.5,1.93685131]
[1768341061763,0.002,3207.1,3206.6,0.19368513]
[1768341062486,0.002,3207.1,3206.6,2.12953644]
[1768341066103,0.002,3207.1,3206.6,1.93585131]
[1768341071777,0.002,3207.4,3207.1,1.81825658]
[1768341072484,0.002,3207.4,3206.7,0.244]
[1768341072688,0.002,3207.4,3206.9,0.001]
[1768341072866,0.002,3207.4,3206.9,1.81925658]
[1768341073067,0.002,3207.4,3207.0,2.00018224]
[1768341073498,0.002,3207.4,3207.0,0.18192566]
[1768341075778,1.83708515,3207.4,3207.0,0.18192566]
[1768341075986,1.83708515,3207.4,3206.9,0.001]
[1768341076184,0.002,3207.4,3206.9,0.001]
[1768341076773,1.87569879,3207.4,3206.9,0.001]
[1768341077105,1.83708515,3207.4,3206.9,0.001]
[1768341078173,4.95493644,3207.4,3206.9,0.001]
[1768341078473,2.39998003,3207.3,3206.9,0.001]
[1768341081911,5.51789172,3207.3,3206.9,0.001]
[1768341083909,1.90448639,3207.1,3206.5,0.001]
[1768341084510,6.2360195,3207.2,3206.5,0.001]
[1768341084511,1.90448639,3206.9,3206.5,0.001]
[1768341084720,1.90448639,3206.7,3206.5,0.001]
[1768341084885,1.90448639,3206.7,3206.1,0.001]
[1768341086392,1.90448639,3206.5,3206.1,0.001]
[1768341086692,2.14948639,3206.5,3206.1,0.001]
[1768341086891,0.245,3206.5,3206.1,0.001]
[1768341087285,0.52680543,3206.5,3206.1,0.001]
[1768341087526,0.77180543,3206.5,3206.1,0.001]
[1768341088425,0.52680543,3206.5,3206.1,1.74678244]
[1768341089624,0.52680543,3206.5,3206.1,0.001]
[1768341090121,3.64549227,3206.5,3206.1,0.001]
[1768341090421,0.38904923,3206.4,3206.1,0.001]
[1768341095528,0.52680543,3206.5,3206.4,0.001]
[1768341098823,3.36348534,3206.7,3206.4,0.001]
[1768341099328,3.11848534,3206.7,3206.4,0.001]
[1768341101625,3.57836526,3206.8,3206.4,0.001]
[1768341102131,0.66966597,3206.7,3206.4,0.001]
[1768341104242,3.78814399,3206.7,3206.4,0.001]
[1768341105241,0.66966597,3206.7,3206.4,0.001]
[1768341105428,3.57837314,3206.8,3206.4,0.001]
[1768341107641,0.002,3206.5,3206.4,0.001]
[1768341109653,1.89579661,3206.5,3206.1,0.001]
[1768341109851,1.89579661,3206.5,3205.7,0.001]
[1768341110745,1.93241025,3206.4,3205.7,0.001]
[1768341111066,4.66553204,3206.5,3205.7,0.001]
[1768341111067,1.89379661,3206.1,3205.7,0.001]
[1768341111621,0.94340787,3206.3,3205.7,0.001]
[1768341111622,1.89379661,3205.9,3205.7,0.001]
[1768341112555,1.89379661,3205.9,3205.4,0.002]
[1768341113755,3.11934618,3205.8,3205.4,0.002]
[1768341113967,1.89379661,3205.7,3205.4,0.002]
[1768341114267,6.23869236,3205.8,3205.4,0.002]
[1768341114740,1.89379661,3205.7,3205.4,0.002]
[1768341115762,1.89379661,3205.4,3204.2,2.54183304]
[1768341115964,1.89379661,3205.2,3204.4,4.66353204]
[1768341116165,3.11983277,3205.3,3204.5,1.90744686]
[1768341116366,3.11983277,3205.3,3204.6,6.5689789]
[1768341116661,3.11983277,3205.3,3204.6,4.66353204]
[1768341116874,3.11983277,3205.3,3204.7,1.90544686]
[1768341117160,3.11983277,3205.3,3204.7,2.56254475]
[1768341117968,5.01362938,3205.3,3204.7,0.65709789]
[1768341118136,3.11955525,3205.6,3204.6,1.90544686]
[1768341118467,5.01335186,3205.6,3204.8,1.90544686]
[1768341118803,3.12025877,3205.7,3204.8,1.90544686]
[1768341118987,5.01405538,3205.7,3204.8,1.90544686]
[1768341119154,1.89379661,3205.6,3205.0,0.002]
[1768341120072,1.89379661,3205.4,3205.0,0.002]
[1768341122162,1.89379661,3205.6,3205.0,0.002]
[1768341123054,1.89459837,3205.7,3205.0,0.002]
[1768341123255,1.89459837,3205.7,3205.0,0.19274469]
[1768341123891,1.89459837,3205.7,3205.0,0.002]
[1768341124347,1.89379661,3205.5,3205.0,0.002]
[1768341125065,3.1195408,3205.6,3205.0,1.86917932]
[1768341125579,3.1195408,3205.6,3205.0,0.002]
[1768341125888,3.1195408,3205.6,3205.0,1.86917932]
[1768341126107,3.1195408,3205.6,3205.1,0.18691793]
[1768341126261,3.1195408,3205.6,3205.1,0.2181182]
[1768341126598,3.1195408,3205.6,3205.1,0.18691793]
[1768341126894,4.83456679,3205.6,3205.0,0.002]
[1768341127694,1.71502599,3205.5,3205.0,0.002]
[1768341128895,4.83530907,3205.7,3205.0,0.002]
[1768341129057,4.83530907,3205.7,3205.0,1.86917932]
[1768341129261,1.71502599,3205.6,3205.0,0.002]
[1768341129978,3.12024788,3205.7,3205.0,1.86917932]
[1768341130188,4.83527387,3205.7,3205.1,0.18691793]
[1768341130370,1.71502599,3205.6,3205.0,0.002]
[1768341130889,6.239694,3205.7,3205.0,0.002]
[1768341131197,1.71582775,3205.7,3205.0,0.002]
[1768341131383,0.001,3205.4,3205.0,0.002]
[1768341131694,0.00080176,3205.7,3205.1,1.86717932]
[1768341131895,1.71582775,3205.7,3205.0,0.002]
[1768341132072,1.71582775,3205.7,3205.0,0.21341793]
[1768341132594,1.71582775,3205.7,3205.0,0.002]
[1768341132595,1.71502599,3205.5,3205.0,0.002]
[1768341132782,1.71502599,3205.4,3205.0,0.002]
[1768341132983,1.75363963,3205.4,3205.0,0.002]
[1768341133187,1.75363963,3205.4,3204.6,0.002]
[1768341133188,1.71502599,3205.2,3204.6,0.002]
[1768341134108,1.71502599,3205.1,3204.2,2.54183304]
[1768341134405,1.71502599,3204.9,3204.2,0.002]
[1768341134585,1.96002599,3204.9,3204.2,0.002]
[1768341135476,3.12031952,3204.8,3204.2,0.002]
[1768341135676,1.71502599,3205.2,3204.2,1.86917932]
[1768341136001,6.23992998,3205.2,3204.2,1.86917932]
[1768341136178,6.23992998,3205.2,3204.3,2.05429725]
[1768341136363,7.95495597,3205.2,3204.3,2.05429725]
[1768341137475,7.95495597,3205.2,3204.3,0.18711793]
[1768341137791,7.95495597,3205.2,3204.3,1.99586611]
[1768341137966,1.77517005,3205.1,3204.3,0.18711793]
[1768341138169,1.77517005,3205.1,3204.2,0.002]
[1768341139600,8.01541965,3205.0,3204.2,0.002]
[1768341139898,1.77517005,3204.9,3204.2,0.002]
[1768341141297,3.1202911,3204.9,3204.2,0.002]
[1768341141604,1.77517005,3205.0,3204.2,0.002]
[1768341142174,1.77517005,3205.0,3204.2,0.18327482]
[1768341142703,6.2404443,3204.9,3204.2,0.18327482]
[1768341142868,6.2404443,3204.9,3204.5,0.002]
[1768341143072,6.23990477,3205.2,3204.5,0.002]
[1768341143701,8.01507482,3205.2,3204.5,0.002]
[1768341143872,1.77517005,3205.1,3204.5,0.002]
[1768341144798,8.01541965,3205.0,3204.5,0.002]
[1768341144995,6.2402496,3205.0,3204.5,0.002]
[1768341146196,8.01541965,3205.0,3204.5,0.002]
[1768341146601,3.1201248,3205.0,3204.5,0.002]
[1768341146804,4.0401365,3205.2,3204.6,0.18107482]
[1768341146805,3.36507604,3205.1,3204.6,0.18107482]
[1768341147000,3.36507604,3205.1,3204.5,1.81074818]
[1768341147708,1.77517005,3205.0,3204.5,0.002]
[1768341147910,6.48515208,3205.1,3204.5,0.002]
[1768341149712,1.77517005,3205.0,3204.5,0.002]
[1768341151006,0.245,3205.0,3204.5,0.002]
[1768341151210,3.36513498,3205.0,3204.5,0.002]
[1768341151615,1.77517005,3204.9,3204.5,0.002]
[1768341152291,7.13377816,3205.0,3204.5,0.002]
[1768341152492,8.90894821,3205.0,3204.5,0.002]
[1768341154015,1.77517005,3204.7,3204.1,0.002]
[1768341154983,1.77517005,3204.7,3203.9,0.002]
[1768341155192,1.73109376,3204.6,3203.7,1.80874818]
[1768341155508,2.53267467,3204.7,3203.7,1.80874818]
[1768341155722,1.73109376,3204.6,3203.7,1.80874818]
[1768341156011,4.85166553,3204.6,3203.7,1.80874818]
[1768341156779,1.73109376,3204.5,3203.7,1.80874818]
[1768341157003,1.73109376,3204.5,3203.8,0.18087482]
[1768341157411,3.12057177,3204.6,3203.8,2.01022083]
[1768341157615,4.85166553,3204.6,3203.8,2.01022083]
[1768341157814,3.12057177,3204.6,3203.8,2.01022083]
[1768341159585,4.85166553,3204.6,3203.8,2.01022083]
[1768341160417,4.85166553,3204.6,3203.9,2.03036809]
[1768341160620,3.12057177,3204.6,3203.9,2.03036809]
[1768341161890,4.85166553,3204.6,3203.9,0.20102208]
[1768341162218,6.24114354,3204.6,3203.7,1.82934601]
[1768341163618,3.12057177,3204.6,3203.7,1.82934601]
[1768341163927,6.24114354,3204.6,3203.7,1.82934601]
[1768341164241,1.73109376,3204.8,3203.7,1.82934601]
[1768341164411,1.73109376,3204.7,3203.9,1.82934601]
[1768341165731,1.73109376,3204.7,3203.8,0.1829346]
[1768341165902,1.73109376,3204.5,3203.8,2.01228061]
[1768341166098,0.03861364,3204.4,3203.8,2.01228061]
[1768341166299,3.12061163,3204.5,3203.8,2.01228061]
[1768341166600,0.001,3204.3,3203.8,2.01228061]
[1768341166927,0.001,3204.3,3203.9,0.20122806]
[1768341167246,0.001,3204.3,3203.7,1.82934601]
[1768341171939,1.73109376,3204.8,3204.1,1.82934601]
[1768341172403,6.2404443,3204.9,3204.1,1.82934601]
[1768341172732,7.97153806,3204.9,3204.1,1.82934601]
[1768341172899,6.2404443,3204.9,3204.1,1.82934601]
[1768341173102,0.71339525,3204.8,3204.1,1.82934601]
[1768341173535,6.2404443,3204.9,3204.1,1.82934601]
[1768341173858,7.97153806,3204.9,3204.1,1.82934601]
[1768341175037,6.2404443,3204.9,3204.1,1.82934601]
[1768341176033,1.73109376,3204.8,3203.5,1.82934601]
[1768341177450,6.2404443,3204.9,3203.5,1.82934601]
[1768341177602,7.97153806,3204.9,3203.7,1.82934601]
[1768341178332,7.97153806,3204.9,3204.1,1.82934601]
[1768341178538,0.001,3204.6,3204.1,1.82934601]
[1768341182812,0.001,3204.6,3204.0,1.83134601]
[1768341190327,0.001,3204.6,3204.3,0.002]
[1768341190528,0.001,3204.6,3204.3,1.81662876]
[1768341194343,0.001,3204.6,3204.3,0.002]
[1768341196333,0.72254539,3204.6,3204.3,0.002]
[1768341198554,3.84308137,3204.6,3204.3,0.002]
[1768341198857,3.12153598,3204.6,3204.3,0.002]
[1768341200870,0.001,3204.6,3204.3,0.002]
[1768341206849,0.001,3204.6,3204.3,1.73356598]
[1768341208870,3.12151426,3204.6,3204.3,0.002]
[1768341209069,3.12151426,3204.6,3204.3,1.73356598]
[1768341209270,3.12151426,3204.6,3204.3,0.002]
[1768341213575,6.24202852,3204.6,3204.0,0.002]
[1768341213793,0.64870285,3204.5,3204.0,1.73356598]
[1768341213996,7.94881513,3204.6,3204.0,0.002]
[1768341214274,1.70678661,3204.5,3204.0,0.002]
[1768341214952,0.001,3204.3,3204.0,0.002]
[1768341215861,0.001,3204.3,3204.0,1.71939465]
[1768341216583,0.001,3204.3,3204.0,0.002]
[1768341216878,1.77020269,3204.3,3203.6,0.002]
[1768341217679,0.245,3204.2,3203.6,0.002]
[1768341217881,3.12100121,3204.1,3203.6,0.002]
[1768341219075,0.245,3204.2,3203.6,1.71939465]
[1768341219276,3.36593576,3204.2,3203.7,1.88933412]
[1768341219480,3.36593576,3204.2,3203.7,1.71739465]
[1768341220256,0.245,3204.2,3203.7,1.71739465]
[1768341220782,3.36592448,3204.2,3203.7,1.71739465]
[1768341226510,0.001,3204.3,3203.7,1.71739465]
[1768341226711,2.85376476,3204.6,3204.0,4.67130311]
[1768341226869,1.08456207,3204.6,3204.1,1.71739465]
[1768341237527,1.76920269,3205.1,3204.2,1.71739465]
[1768341237736,4.88925345,3205.1,3204.6,0.07229566]
[1768341237949,3.12005076,3205.1,3204.6,0.07229566]
[1768341238620,3.11993359,3205.2,3204.6,0.07229566]
[1768341238947,3.11993359,3205.2,3204.6,1.78969031]
[1768341239642,6.23986718,3205.2,3204.6,1.78969031]
[1768341240447,8.00906987,3205.2,3204.6,0.07229566]
[1768341240732,8.83457686,3205.2,3204.6,0.07229566]
[1768341241296,5.71464327,3205.2,3204.6,0.07229566]
[1768341242240,8.83457686,3205.2,3204.6,0.07229566]
[1768341243440,5.71464327,3205.2,3204.6,0.07229566]
[1768341243643,8.00906987,3205.2,3204.6,0.07229566]
[1768341244151,1.76920269,3205.1,3204.6,0.07229566]
[1768341244800,3.1201248,3205.0,3204.6,0.07229566]
[1768341245197,3.1201248,3205.0,3204.0,1.69793875]
[1768341245198,1.58216022,3204.9,3204.0,1.69793875]
[1768341245439,1.58216022,3204.9,3204.0,0.247]
[1768341245615,1.58216022,3204.9,3204.0,0.88372419]
[1768341246115,1.58216022,3204.9,3204.0,2.33466294]
[1768341246802,4.70241563,3204.9,3204.1,1.45093875]
[1768341247613,1.58216022,3204.8,3204.0,0.88372419]
[1768341247818,3.12025541,3204.9,3204.1,1.45093875]
[1768341248018,1.58216022,3204.8,3204.1,1.45093875]
[1768341248552,1.58216022,3204.8,3204.0,0.88372419]
[1768341249332,1.58216022,3204.8,3204.0,2.33466294]
[1768341249844,4.70249984,3204.8,3204.0,2.33466294]
[1768341250412,4.70249984,3204.8,3204.3,0.002]
[1768341250637,0.001,3204.6,3204.3,0.002]
[1768341251198,1.58216022,3204.5,3204.3,0.002]
[1768341251510,0.001,3204.6,3204.3,0.002]
[1768341255148,1.82716022,3205.1,3204.3,1.45293875]
[1768341256502,0.245,3205.1,3204.3,1.45293875]
[1768341256709,0.245,3205.1,3204.5,1.45767242]
[1768341257854,1.44901025,3205.0,3204.4,0.61222419]
[1768341258063,0.245,3205.1,3204.5,1.45767242]
[1768341260944,3.1199331,3205.2,3204.5,1.45767242]
[1768341261149,3.12087855,3205.3,3204.5,1.45767242]
[1768341261309,3.12087855,3205.3,3204.6,1.66466208]
[1768341261707,1.44901025,3205.2,3204.6,0.20698966]
[1768341261944,1.44901025,3205.2,3204.4,0.61222419]
[1768341262350,0.001,3204.8,3204.4,2.06989661]
[1768341262651,1.44901025,3205.2,3204.4,2.06989661]
[1768341262845,3.12083407,3205.3,3204.5,1.45767242]
[1768341263224,0.001,3205.3,3204.5,1.45767242]
[1768341263426,0.001,3205.3,3204.6,0.20698966]
[1768341264107,1.44901025,3205.2,3204.6,0.20698966]
[1768341264307,1.44901025,3205.2,3204.4,2.31489661]
[1768341264508,0.001,3205.3,3204.5,1.45767242]
[1768341272536,1.45001025,3205.3,3204.5,1.45767242]
[1768341273738,1.45001025,3205.3,3204.8,0.002]
[1768341274050,0.001,3205.0,3204.8,0.002]
[1768341274250,1.44901025,3205.2,3204.8,0.002]
[1768341276276,0.001,3205.3,3204.8,0.002]
[1768341282136,1.41207178,3205.3,3204.8,0.002]
[1768341284179,4.53197323,3205.3,3204.8,0.002]
[1768341285290,4.53197323,3205.3,3204.3,0.002]
[1768341285291,1.41107178,3205.2,3204.3,0.002]
[1768341285961,1.41107178,3205.2,3204.3,1.28746974]
[1768341286160,1.41207178,3205.0,3204.3,0.002]
[1768341286364,1.41107178,3205.2,3205.0,0.07228663]
[1768341287079,1.41207178,3205.3,3205.0,0.07228663]
[1768341287657,1.41107178,3205.2,3204.3,0.002]
[1768341287858,1.41107178,3205.2,3204.3,0.46890933]
[1768341288258,1.41107178,3205.1,3204.3,0.46890933]
[1768341288481,3.11993545,3205.2,3204.4,1.28546974]
[1768341288889,3.12087134,3205.3,3204.4,1.28546974]
[1768341290183,3.15856023,3205.2,3204.4,1.28546974]
[1768341291493,3.12087711,3205.3,3204.4,1.28546974]
[1768341291788,0.001,3205.3,3204.4,1.28546974]
[1768341292690,0.001,3205.3,3204.5,1.28546974]
[1768341292893,0.245,3205.6,3204.7,1.28546974]
[1768341293453,0.00080176,3205.7,3204.7,1.28546974]
[1768341293454,0.00080176,3205.7,3204.9,1.28546974]
[1768341293701,0.00080176,3205.7,3204.8,0.245]
[1768341293702,0.001,3206.2,3205.6,1.28546974]
[1768341293873,1.41107178,3206.1,3205.3,4.66789512]
[1768341294065,1.41107178,3206.1,3205.3,0.00080184]
[1768341294794,3.11996006,3206.2,3205.3,1.28627158]
[1768341294991,4.53103184,3206.2,3205.3,1.28627158]
[1768341295957,4.53103184,3206.2,3205.4,1.28546974]
[1768341296995,1.41107178,3206.1,3205.3,0.59613833]
[1768341297597,0.001,3206.2,3205.4,1.28546974]
[1768341297796,0.001,3206.2,3206.1,0.07228663]
[1768341297972,0.41204501,3206.2,3205.4,1.28546974]
[1768341298181,0.41204501,3206.2,3205.5,0.21266081]
[1768341298480,0.001,3206.2,3205.5,1.49813055]
[1768341301010,0.37404889,3205.8,3205.0,1.28546974]
[1768341301302,0.37485073,3205.7,3204.8,1.28546974]
[1768341301469,0.00080184,3205.7,3204.8,1.28546974]
[1768341302058,0.00080184,3205.7,3204.7,4.66909328]
[1768341302059,0.00080184,3205.7,3205.0,1.28546974]
[1768341302364,0.00080184,3205.7,3205.2,1.28546974]
[1768341302565,0.00080184,3205.7,3205.3,0.03119832]
[1768341303064,0.00080184,3205.7,3205.3,1.31666806]
[1768341303789,0.00080184,3205.7,3205.3,1.47283487]
[1768341304192,0.00080184,3205.7,3205.3,1.44163655]
[1768341304392,0.00080184,3205.7,3205.3,1.28546974]
[1768341304557,0.00080184,3205.7,3205.1,1.53046974]
[1768341306571,0.00080184,3205.7,3205.2,0.03119929]
[1768341306772,0.00080184,3205.7,3205.2,1.4477841]
[1768341307296,0.00080184,3205.7,3205.2,1.41658481]
[1768341307717,0.00080184,3205.7,3205.1,0.245]
[1768341307864,0.00080184,3205.7,3205.1,1.82774329]
[1768341308174,0.00080184,3205.7,3205.2,1.41658481]
[1768341309168,0.00080184,3205.7,3205.1,0.245]
[1768341309368,0.49494619,3205.7,3205.1,0.245]
[1768341309570,0.00080184,3205.7,3205.1,1.66158481]
[1768341310098,0.001,3205.4,3205.1,1.66158481]
[1768341310298,0.00080184,3205.7,3205.1,1.82774329]
[1768341310500,0.00080184,3205.7,3205.1,1.66158481]
[1768341317110,0.00080184,3205.7,3205.1,0.245]
[1768341317421,0.00080184,3205.7,3205.2,1.45335843]
[1768341318308,0.00080184,3205.7,3205.1,1.69835843]
[1768341321800,0.001,3205.4,3205.1,1.69835843]
[1768341321995,0.00080184,3205.7,3205.1,1.69835843]
[1768341321996,0.00080184,3205.7,3205.2,0.16983584]
[1768341322300,0.00080184,3205.7,3205.1,0.245]
[1768341323218,0.00080184,3205.7,3205.2,1.45335843]
[1768341326412,0.00080184,3205.7,3205.1,1.69835843]
[1768341330832,0.00080184,3205.7,3205.3,1.45335843]
[1768341333330,0.00080184,3205.7,3205.4,1.45535843]
[1768341335222,0.00080184,3205.7,3205.4,0.002]
[1768341338846,0.79636519,3205.4,3204.7,0.002]
[1768341339006,5.46175689,3205.0,3204.7,0.002]
[1768341340115,6.2404443,3204.9,3204.4,0.002]
[1768341340712,3.12022215,3204.9,3204.4,0.002]
[1768341341511,3.12022215,3204.9,3204.4,1.49977696]
[1768341342207,6.2404443,3204.9,3204.4,0.002]
[1768341342403,8.47110035,3204.9,3204.4,0.002]
[1768341344328,0.84337314,3204.8,3204.4,0.002]
[1768341345780,1.40259694,3204.9,3204.4,1.49977696]
[1768341346070,6.24005986,3205.1,3204.4,1.49977696]
[1768341346871,6.24005986,3205.1,3204.7,0.001]
[1768341347073,0.64850599,3205.0,3204.7,0.001]
[1768341348743,3.12022215,3204.9,3204.7,0.001]
[1768341357908,3.76868165,3205.0,3204.7,0.001]
[1768341360320,6.88885731,3205.0,3204.7,0.001]
[1768341360902,3.76868165,3205.0,3204.7,0.001]
[1768341364749,0.97838736,3204.9,3204.7,0.001]
[1768341365045,4.75304118,3205.0,3204.7,0.001]
[1768341365247,3.76868165,3205.0,3204.7,0.001]
[1768341365946,4.75893904,3205.0,3204.7,0.001]
[1768341367926,3.76868165,3205.0,3204.7,0.001]
[1768341368131,4.6653917,3204.8,3204.4,0.002]
[1768341368334,4.6653917,3204.5,3204.0,1.69976832]
[1768341369985,6.24102852,3204.6,3204.0,1.69976832]
[1768341370768,3.12051426,3204.6,3204.0,1.69976832]
[1768341371868,3.12051426,3204.6,3204.3,1.70176832]
[1768341372272,0.001,3204.7,3204.3,1.70176832]
[1768341373801,0.6080138,3204.7,3204.3,1.70176832]
[1768341374407,3.12051426,3204.6,3204.3,1.70176832]
[1768341375705,0.001,3204.7,3204.3,1.70176832]
[1768341375706,3.12146831,3204.7,3204.3,1.70176832]
[1768341375910,0.001,3204.7,3204.3,1.70176832]
[1768341378196,0.001,3204.7,3204.3,1.94676832]
[1768341378512,3.12002745,3205.1,3204.7,1.74261245]
[1768341378717,3.12002745,3205.1,3204.4,1.93728928]
[1768341379412,3.36498038,3205.2,3204.4,1.93728928]
[1768341379611,3.12175177,3205.4,3204.4,1.93728928]
[1768341379810,3.12175177,3205.4,3204.6,1.74261245]
[1768341380684,0.002,3205.4,3204.6,1.74261245]
[1768341384305,0.001,3205.1,3204.6,1.74261245]
[1768341384613,0.002,3205.4,3204.6,1.74261245]
[1768341384818,0.002,3205.4,3204.7,1.74261245]
[1768341385119,0.00280184,3205.7,3204.9,1.74261245]
[1768341388928,0.00280184,3205.7,3205.0,1.74261245]
[1768341391918,0.00280184,3205.7,3205.1,0.245]
[1768341392107,0.00280184,3205.7,3205.1,1.98761245]
[1768341392306,0.00280184,3205.7,3205.1,1.74261245]
[1768341392547,1.13059344,3205.5,3205.0,0.245]
[1768341392718,1.13059344,3205.5,3204.7,1.74261245]
[1768341393043,1.13059344,3205.5,3204.8,0.245]
[1768341393608,1.13059344,3205.5,3204.8,1.98761245]
[1768341396166,0.001,3205.4,3204.8,1.98761245]
[1768341396325,0.001,3205.4,3204.9,0.19876125]
[1768341399225,0.001,3205.4,3204.9,1.97963378]
[1768341407629,0.001,3205.4,3205.1,0.002]
[1768341422437,3.12224711,3205.7,3205.1,1.78287253]
[1768341422806,0.00280184,3205.7,3205.1,1.78287253]
[1768341427113,0.00280184,3205.7,3205.1,1.96135978]
[1768341432374,0.00280184,3205.7,3205.4,1.71419319]
[1768341436341,0.00280184,3205.7,3205.4,0.002]
[1768341437782,0.00280184,3205.7,3205.4,1.72357147]
[1768341440790,0.00280184,3205.7,3205.4,0.002]
[1768341441098,0.00280184,3205.7,3204.8,0.247]
[1768341441099,1.28957281,3205.5,3204.8,1.72357147]
[1768341441254,1.28957281,3205.1,3204.1,0.245]
[1768341441458,1.28957281,3205.1,3204.3,1.72357147]
[1768341441855,1.28957281,3205.1,3204.3,0.002]
[1768341442790,1.28957281,3205.1,3204.4,1.72157147]
[1768341443178,7.32633415,3205.4,3204.4,1.72157147]
[1768341443380,0.73263342,3205.3,3204.4,1.72157147]
[1768341444256,1.83683314,3205.2,3204.4,1.72157147]
[1768341444481,0.73263342,3205.3,3204.4,1.72157147]
[1768341444679,2.56946656,3205.3,3204.5,1.75277758]
[1768341444880,2.56946656,3205.3,3204.5,1.72157147]
[1768341445210,3.11993011,3205.2,3204.5,1.72157147]
[1768341445397,2.56946656,3205.3,3204.5,1.72157147]
[1768341445604,4.95668694,3205.3,3204.5,1.72157147]
[1768341448310,3.12175697,3205.4,3204.6,1.7527766]
[1768341448916,4.95859011,3205.4,3204.6,1.7527766]
[1768341449310,0.002,3205.4,3204.6,1.7527766]
[1768341449515,0.002,3205.4,3204.6,1.96657147]
[1768341449721,0.00280184,3205.7,3204.6,1.96657147]
[1768341449722,0.00280184,3205.7,3205.2,1.72157147]
[1768341450021,0.00280184,3205.7,3204.8,1.72157147]
[1768341450723,0.00280184,3205.7,3205.0,1.72157147]
[1768341451595,0.00280184,3205.7,3204.9,0.245]
[1768341451596,1.83963498,3205.7,3204.9,0.245]
[1768341451795,0.00280184,3205.7,3205.0,1.72157147]
[1768341452017,1.83963498,3205.7,3205.0,0.19665715]
[1768341452335,1.83963498,3205.7,3204.9,0.245]
[1768341452634,0.00280184,3205.7,3205.0,1.72157147]
[1768341453198,1.83963498,3205.7,3204.9,0.245]
[1768341453810,1.83963498,3205.7,3204.9,1.96657147]
[1768341454024,0.00280184,3205.7,3204.9,1.96657147]
[1768341454635,1.83683314,3205.6,3204.9,0.245]
[1768341454830,3.12225622,3205.7,3205.0,1.91822862]
[1768341456543,0.002,3205.4,3205.0,0.19665715]
[1768341458036,0.002,3205.4,3205.0,2.02267672]